bitfinex/quotes_SOLUSD_20240708
["timestamp","ask_amount","ask_price","bid_price","bid_amount"]
[1720464680689,7.235,138.22,138.16,7.2376]
[1720464680865,20.0,138.21,138.16,7.2376]
[1720464681375,15.9489,138.2,138.16,7.2376]
[1720464682577,6.4261,138.19,138.15,7.2383]
[1720464682789,27.4073,138.18,138.13,7.2395]
[1720464682998,20.17,138.18,138.13,7.2395]
[1720464683374,27.4072,138.18,138.12,7.24]
[1720464683673,20.17,138.18,138.12,7.24]
[1720464683888,27.4071,138.18,138.12,7.24]
[1720464684593,20.17,138.18,138.14,7.239]
[1720464684895,20.17,138.18,138.13,7.2393]
[1720464685094,20.17,138.18,138.11,18.1004]
[1720464685975,20.17,138.18,138.13,7.2395]
[1720464686178,20.17,138.18,138.16,7.2376]
[1720464686179,20.0,138.18,138.16,7.2376]
[1720464686481,20.0,138.18,138.15,25.334]
[1720464687085,20.0,138.18,138.15,25.3338]
[1720464687489,20.0,138.18,138.16,7.2379]
[1720464687869,0.34,138.17,138.05,100.0]
[1720464688292,27.7472821,138.18,138.08,100.0]
[1720464688506,7.5772821,138.18,138.08,200.0]
[1720464688679,13.6625,138.19,138.08,200.0]
[1720464688874,13.6625,138.19,138.13,25.3376]
[1720464689278,13.6625,138.19,138.14,7.239]
[1720464689796,20.0,138.18,138.1,18.1021]
[1720464690489,20.0,138.18,138.13,7.2392]
[1720464691378,20.0,138.18,138.12,25.3395]
[1720464691575,7.2375,138.17,138.12,18.0996]
[1720464691790,20.0,138.18,138.14,7.239]
[1720464692190,27.2371,138.18,138.12,25.3396]
[1720464692578,27.2371,138.18,138.13,7.2394]
[1720464692775,6.4261,138.19,138.16,7.2374]
[1720464692998,15.9489,138.2,138.1,36.2039]
[1720464692999,15.9489,138.2,138.19,7.2364]
[1720464693300,6.3608,138.22,138.19,7.2361]
[1720464693607,4.56053912,138.24,138.2,18.0892]
[1720464693802,7.5735427,138.26,138.25,7.2332]
[1720464693975,15.9652,138.29,138.27,7.2319]
[1720464694292,15.9652,138.29,138.27,7.232]
[1720464694501,15.9652,138.29,138.28,7.2317]
[1720464694699,15.9652,138.29,138.27,7.232]
[1720464694895,6.3608,138.3,138.28,18.0781]
[1720464695393,29.21187019,138.34,138.31,7.23]
[1720464695597,21.6419,138.34,138.3,18.076]
[1720464695897,21.6419,138.34,138.31,7.23]
[1720464696276,21.6419,138.34,138.3,25.3065]
[1720464696685,21.6419,138.34,138.31,7.23]
[1720464697392,21.6419,138.34,138.3,25.3065]
[1720464697604,6.4202,138.34,138.3,18.076]
[1720464697772,6.4202,138.34,138.31,7.23]
[1720464698085,6.4202,138.34,138.3,18.076]
[1720464698699,6.4202,138.34,138.3,25.3066]
[1720464699095,6.4202,138.34,138.31,7.23]
[1720464699603,0.04299775,138.36,138.31,7.23]
[1720464699798,20.04299775,138.36,138.3,18.076]
[1720464699978,27.27059775,138.36,138.3,25.3065]
[1720464700795,27.27059775,138.36,138.27,36.161]
[1720464700796,7.2287,138.34,138.28,7.2315]
[1720464700988,7.2292,138.33,138.27,25.3117]
[1720464701191,6.0277,138.35,138.27,18.0797]
[1720464701384,6.0277,138.35,138.31,7.23]
[1720464701590,20.0,138.34,138.31,7.23]
[1720464701803,20.0,138.34,138.32,7.2295]
[1720464702098,20.0,138.34,138.31,7.2299]
[1720464702490,20.0,138.34,138.3,7.2305]
[1720464702698,6.0277,138.35,138.31,7.23]
[1720464702903,0.04299775,138.36,138.33,18.0724]
[1720464703305,0.04299775,138.36,138.35,7.228]
[1720464703612,0.04299775,138.36,138.33,18.0724]
[1720464703780,0.04299775,138.36,138.35,7.228]
[1720464705300,0.04299775,138.36,138.35,7.398]
[1720464707499,0.04299775,138.36,138.35,7.228]
[1720464709411,0.04299775,138.36,138.34,7.2284]
[1720464709883,0.04299775,138.36,138.33,25.3013]
[1720464710079,0.04299775,138.36,138.33,18.0724]
[1720464710291,6.0189,138.35,138.31,7.23]
[1720464710691,13.2473,138.35,138.3,18.0762]
[1720464710878,6.0189,138.35,138.3,18.0762]
[1720464711187,0.04299775,138.36,138.31,200.0]
[1720464711389,0.04299775,138.36,138.35,7.228]
[1720464712703,0.04299775,138.36,138.34,18.0706]
[1720464712704,0.04299775,138.36,138.34,25.299]
[1720464713810,0.04299775,138.36,138.35,7.228]
[1720464719122,0.04299775,138.36,138.34,18.0706]
[1720464719509,0.04299775,138.36,138.32,7.2295]
[1720464719706,0.04299775,138.36,138.31,18.0743]
[1720464720723,0.04299775,138.36,138.33,7.2289]
[1720464721411,0.04299775,138.36,138.34,7.2284]
[1720464721926,0.04299775,138.36,138.33,25.3011]
[1720464722501,16.2719,138.35,138.31,7.2299]
[1720464722719,16.2719,138.35,138.32,25.3034]
[1720464723219,16.2719,138.35,138.31,7.23]
[1720464723411,16.2719,138.35,138.29,36.1542]
[1720464723613,16.2719,138.35,138.33,25.3014]
[1720464723924,16.2719,138.35,138.33,18.0727]
[1720464724103,16.2719,138.35,138.33,25.3017]
[1720464724298,0.04299775,138.36,138.29,36.1542]
[1720464724609,0.04299775,138.36,138.35,25.2981]
[1720464725116,0.04299775,138.36,138.35,25.4681]
[1720464725499,0.04299775,138.36,138.35,25.2981]
[1720464726017,0.04299775,138.36,138.35,25.4681]
[1720464726807,0.04299775,138.36,138.35,45.4681]
[1720464727209,0.04299775,138.36,138.35,45.6381]
[1720464727813,0.04299775,138.36,138.35,45.4681]
[1720464728210,0.8443798,138.39,138.38,61.4248]
[1720464730814,0.8443798,138.39,138.38,61.5948]
[1720464731008,0.3443798,138.39,138.38,61.5948]
[1720464731322,7.98e-05,138.39,138.38,161.5948]
[1720464731626,7.98e-05,138.39,138.38,81.7648]
[1720464731920,7.98e-05,138.39,138.38,81.5948]
[1720464732315,7.98e-05,138.39,138.38,81.7648]
[1720464732718,14.0957798,138.46,138.45,7.2228]
[1720464733307,14.0957798,138.46,138.41,7.2244]
[1720464733528,14.0957798,138.46,138.4,18.0625]
[1720464734023,14.0957798,138.46,138.41,7.2245]
[1720464734206,21.3181798,138.46,138.41,7.2245]
[1720464734400,14.0957798,138.46,138.41,7.2245]
[1720464734625,14.0957798,138.46,138.42,7.2242]
[1720464735201,14.0957798,138.46,138.43,7.2237]
[1720464736438,14.0957798,138.46,138.42,25.2847]
[1720464736801,14.0957798,138.46,138.42,18.0605]
[1720464737004,14.0957798,138.46,138.39,18.0639]
[1720464737205,27.223,138.45,138.39,25.2897]
[1720464737701,20.0,138.45,138.38,7.2263]
[1720464737924,16.6476,138.4,138.36,18.0678]
[1720464738728,23.8731,138.4,138.35,7.2276]
[1720464739527,16.6476,138.4,138.33,18.0717]
[1720464739732,7.2271,138.37,138.31,7.2298]
[1720464740022,22.5441,138.35,138.3,18.0757]
[1720464740453,15.316,138.35,138.31,7.2299]
[1720464740616,15.316,138.35,138.32,7.2292]
[1720464740935,15.316,138.35,138.31,7.23]
[1720464741325,15.316,138.35,138.3,18.0757]
[1720464741326,15.316,138.35,138.32,7.2293]
[1720464741831,15.316,138.35,138.31,7.2299]
[1720464742030,15.316,138.35,138.3,25.3061]
[1720464742215,7.2286,138.34,138.27,18.0795]
[1720464742421,27.2286,138.34,138.27,18.0795]
[1720464742744,20.0,138.34,138.3,7.2305]
[1720464743736,20.0,138.34,138.31,7.2299]
[1720464743910,15.316,138.35,138.27,36.1594]
[1720464744217,15.316,138.35,138.32,7.2292]
[1720464745139,15.316,138.35,138.31,25.3048]
[1720464745457,6.4858,138.36,138.33,18.0719]
[1720464745621,6.4858,138.36,138.35,7.228]
[1720464746414,16.2712,138.38,138.37,7.227]
[1720464746725,6.4797,138.4,138.38,25.2913]
[1720464746925,6.4797,138.4,138.39,7.2259]
[1720464747226,16.2848,138.42,138.4,7.2254]
[1720464747429,6.4797,138.44,138.4,7.2254]
[1720464747628,6.4797,138.44,138.4,25.2885]
[1720464747828,7.2241,138.43,138.37,18.0667]
[1720464748022,13.7031,138.44,138.38,7.2261]
[1720464748224,13.7031,138.44,138.39,7.2258]
[1720464748430,6.4797,138.44,138.39,7.2258]
[1720464748819,6.4797,138.44,138.41,7.2247]
[1720464749517,6.4797,138.44,138.4,25.2884]
[1720464749713,6.4797,138.44,138.42,7.2243]
[1720464750637,6.4797,138.44,138.41,7.2247]
[1720464751219,6.4797,138.44,138.42,7.2242]
[1720464751614,6.4797,138.44,138.4,25.288]
[1720464752221,6.4797,138.44,138.37,18.0666]
[1720464752422,20.0,138.43,138.37,25.2935]
[1720464752647,27.224,138.43,138.38,7.2263]
[1720464753232,27.224,138.43,138.37,18.0666]
[1720464753233,20.0,138.43,138.39,7.2259]
[1720464753625,20.0,138.43,138.4,7.2253]
[1720464753821,20.0,138.43,138.36,18.0678]
[1720464754056,20.0,138.43,138.35,0.17]
[1720464754239,20.0,138.43,138.39,7.2256]
[1720464755355,27.2239,138.43,138.38,18.0656]
[1720464755531,20.0,138.43,138.35,18.0697]
[1720464755927,6.4797,138.44,138.4,7.225]
[1720464756151,6.4797,138.44,138.41,7.2247]
[1720464756528,6.4797,138.44,138.4,7.2253]
[1720464756727,6.4797,138.44,138.39,18.0643]
[1720464756728,13.7033,138.44,138.39,18.0643]
[1720464757036,7.224,138.43,138.37,7.2267]
[1720464757236,7.224,138.43,138.36,18.0678]
[1720464757435,35.05822711,138.48,138.28,5.90906663]
[1720464757436,22.0612,138.4,138.28,5.90906663]
[1720464757630,7.227,138.37,138.31,7.2297]
[1720464758030,20.0,138.36,138.31,7.2297]
[1720464758245,27.2275,138.36,138.31,7.2297]
[1720464758448,27.2275,138.36,138.3,25.3069]
[1720464758627,7.2295,138.33,138.27,25.3113]
[1720464758829,22.0612,138.34,138.27,25.3113]
[1720464758830,29.2899,138.34,138.28,7.2314]
[1720464759349,7.2295,138.33,138.27,25.3116]
[1720464759527,7.2297,138.32,138.27,25.3116]
[1720464759853,14.96824723,138.33,138.27,18.0796]
[1720464760227,14.96824723,138.33,138.27,25.3117]
[1720464761155,14.96824723,138.33,138.28,7.2316]
[1720464762252,22.0612,138.34,138.29,18.0768]
[1720464762449,20.0,138.33,138.29,18.0768]
[1720464762647,20.0,138.33,138.3,7.2305]
[1720464763441,22.0612,138.34,138.31,18.0748]
[1720464764364,22.0612,138.34,138.31,25.3047]
[1720464764657,22.0612,138.34,138.29,7.2308]
[1720464765044,22.0612,138.34,138.32,7.2291]
[1720464766049,22.0612,138.34,138.33,7.229]
[1720464767161,22.0612,138.34,138.32,7.2294]
[1720464767362,22.0612,138.34,138.33,7.229]
[1720464768043,13.84191347,138.4,138.34,18.0713]
[1720464768044,16.0931,138.37,138.34,18.0713]
[1720464768237,16.0931,138.37,138.34,25.2995]
[1720464769141,16.0931,138.37,138.35,7.228]
[1720464769337,16.0931,138.37,138.36,7.2275]
[1720464769561,22.7394,138.41,138.38,7.2259]
[1720464769876,22.7394,138.41,138.34,100.0]
[1720464770043,16.0964,138.44,138.41,7.2245]
[1720464770653,16.0964,138.44,138.4,7.2252]
[1720464771581,16.0964,138.44,138.38,7.2261]
[1720464771877,16.0964,138.44,138.38,18.066]
[1720464772768,16.0964,138.44,138.38,25.2923]
[1720464772952,16.0964,138.44,138.39,7.2258]
[1720464773471,0.17,138.41,138.26,58.9051]
[1720464773651,0.17,138.39,138.26,58.9051]
[1720464773848,7.2271,138.37,138.26,52.5757]
[1720464774051,20.0,138.36,138.26,52.5757]
[1720464774250,20.0,138.36,138.26,16.4133]
[1720464774457,20.0,138.36,138.29,25.3084]
[1720464774660,7.2281,138.35,138.3,7.2305]
[1720464774975,20.0,138.34,138.3,7.2305]
[1720464775158,35.1281,138.34,138.29,25.3088]
[1720464775468,6.1183,138.33,138.29,18.0778]
[1720464775876,7.2298,138.32,138.26,18.0814]
[1720464776176,20.0,138.31,138.26,18.0814]
[1720464777162,13.5175,138.33,138.22,36.1729]
[1720464777163,20.0,138.32,138.28,25.3104]
[1720464777384,20.0,138.32,138.28,18.0789]
[1720464777553,20.0,138.32,138.28,25.3104]
[1720464780357,20.0,138.32,138.28,18.0789]
[1720464780558,20.0,138.32,138.28,25.3104]
[1720464780981,6.1183,138.33,138.29,7.2307]
[1720464781209,6.1183,138.33,138.3,18.0762]
[1720464781369,6.1183,138.33,138.27,18.0799]
[1720464781562,13.3474,138.33,138.27,18.0799]
[1720464781887,13.3474,138.33,138.23,100.0]
[1720464781888,6.1183,138.33,138.26,7.2326]
[1720464782090,7.2298,138.32,138.26,7.2326]
[1720464782462,20.0,138.31,138.27,7.2322]
[1720464783083,20.0,138.32,138.22,136.1729]
[1720464783391,20.0,138.32,138.3,7.2302]
[1720464783583,20.0,138.32,138.3,18.0761]
[1720464783781,20.0,138.32,138.27,18.0796]
[1720464783985,20.0,138.32,138.25,7.2329]
[1720464784174,7.2309,138.3,138.24,25.3169]
[1720464784372,7.2302,138.31,138.25,7.2329]
[1720464784569,20.0,138.3,138.25,7.2329]
[1720464784972,20.0,138.3,138.26,7.2326]
[1720464785362,27.2302,138.31,138.26,7.2326]
[1720464785793,20.0,138.31,138.26,25.3143]
[1720464786001,20.0,138.31,138.22,36.1729]
[1720464786160,6.1183,138.33,138.28,25.3098]
[1720464786161,20.0,138.32,138.28,25.3098]
[1720464786501,6.1183,138.33,138.3,7.2305]
[1720464786987,6.1183,138.33,138.18,100.0]
[1720464787192,7.2314,138.29,138.19,20.0]
[1720464787361,28.1279782,138.33,138.2,136.1778]
[1720464787563,7.2304,138.31,138.2,136.1778]
[1720464787783,7.2304,138.31,138.24,18.0839]
[1720464787784,20.0,138.3,138.24,18.0839]
[1720464787985,20.0,138.3,138.25,7.233]
[1720464788174,20.0,138.3,138.26,7.2326]
[1720464788378,20.0,138.31,138.26,25.3144]
[1720464788575,20.0,138.31,138.27,7.2321]
[1720464789879,27.2302,138.31,138.26,25.3143]
[1720464790092,27.2302,138.31,138.26,18.0818]
[1720464790287,20.0,138.31,138.23,18.0846]
[1720464790472,7.2309,138.3,138.24,7.2335]
[1720464791275,7.2309,138.3,138.25,7.2331]
[1720464791598,7.2314,138.29,138.23,18.0846]
[1720464791884,27.2318,138.28,138.23,25.3186]
[1720464792095,16.1747,138.27,138.23,25.3186]
[1720464792994,16.1747,138.27,138.24,7.2337]
[1720464794182,16.1747,138.27,138.2,7.2354]
[1720464794183,33.6333,138.26,138.2,7.2354]
[1720464794891,26.4005,138.26,138.21,7.2352]
[1720464795099,6.4005,138.26,138.24,7.2334]
[1720464795299,30.61945589,138.3,138.2,236.1779]
[1720464795502,23.048,138.3,138.27,7.2318]
[1720464796003,6.4005,138.3,138.28,25.3106]
[1720464796215,23.2417,138.34,138.28,18.0791]
[1720464796410,23.2417,138.34,138.31,7.23]
[1720464796773,23.2417,138.34,138.3,25.3067]
[1720464796978,23.2417,138.34,138.3,18.0762]
[1720464797175,23.2417,138.34,138.32,7.2292]
[1720464797578,23.2417,138.34,138.3,18.0762]
[1720464797872,23.2417,138.34,138.3,25.3067]
[1720464798094,23.2417,138.34,138.29,7.231]
[1720464798805,23.2417,138.34,138.27,18.0794]
[1720464798977,27.2292,138.33,138.27,25.3112]
[1720464799176,20.0,138.33,138.25,100.0]
[1720464799381,20.0,138.33,138.31,7.23]
[1720464800081,20.0,138.33,138.3,7.2304]
[1720464800701,20.0,138.33,138.29,25.3085]
[1720464801002,20.0,138.33,138.26,54.2431]
[1720464801313,27.2294,138.33,138.27,7.2319]
[1720464801606,27.2294,138.33,138.26,54.2431]
[1720464801607,7.2303,138.31,138.26,25.3139]
[1720464801904,27.2292,138.33,138.27,7.2321]
[1720464802602,27.2292,138.33,138.28,7.2316]
[1720464803588,7.231,138.3,138.24,7.2334]
[1720464803793,7.231,138.3,138.23,18.0856]
[1720464803794,20.0,138.29,138.23,18.0856]
[1720464804303,20.0,138.29,138.25,7.2332]
[1720464804496,20.0,138.3,138.25,7.2332]
[1720464804886,27.2306,138.3,138.25,7.2332]
[1720464805089,27.2311,138.3,138.24,7.2336]
[1720464806006,20.0,138.3,138.25,7.2332]
[1720464806191,20.0,138.3,138.26,7.2325]
[1720464806592,20.0,138.31,138.26,7.2325]
[1720464806983,20.0,138.31,138.27,18.0804]
[1720464807306,20.0,138.32,138.27,18.0804]
[1720464807516,14.16417554,138.34,138.32,7.2296]
[1720464807685,6.5942,138.34,138.32,7.2296]
[1720464808082,6.5942,138.34,138.31,25.3049]
[1720464809009,7.2296,138.32,138.27,7.2322]
[1720464809189,7.2306,138.3,138.24,7.2334]
[1720464809509,6.5942,138.34,138.26,7.2322]
[1720464809510,7.2297,138.32,138.26,7.2322]
[1720464809701,20.0,138.31,138.26,7.2322]
[1720464809900,20.0,138.31,138.27,7.2321]
[1720464810079,27.2301,138.31,138.26,7.2325]
[1720464810281,20.0,138.31,138.26,7.2325]
[1720464810513,20.0,138.31,138.28,7.2316]
[1720464810696,20.0,138.33,138.28,7.2316]
[1720464811078,27.2291,138.33,138.27,18.0803]
[1720464811291,27.2291,138.33,138.27,25.3123]
[1720464811905,6.5942,138.34,138.27,18.0803]
[1720464812078,6.5942,138.34,138.26,0.17]
[1720464812284,6.5942,138.34,138.32,7.2291]
[1720464812489,6.5942,138.34,138.31,18.0748]
[1720464812906,6.5942,138.34,138.32,7.2294]
[1720464813388,6.5942,138.34,138.3,7.2302]
[1720464813582,6.5942,138.34,138.28,54.235]
[1720464813583,6.5942,138.34,138.31,7.23]
[1720464813784,6.5942,138.34,138.3,25.3069]
[1720464815084,6.5942,138.34,138.3,18.0764]
[1720464815289,20.0,138.33,138.3,18.0764]
[1720464815489,20.0,138.33,138.28,7.2316]
[1720464816610,27.2294,138.33,138.27,25.3116]
[1720464816811,0.17,138.32,138.28,7.2315]
[1720464817020,20.0,138.33,138.28,7.2315]
[1720464817514,0.17,138.32,138.28,7.2315]
[1720464818023,0.17,138.32,138.29,7.2311]
[1720464819247,15.2788,138.31,138.25,7.233]
[1720464819391,20.17,138.3,138.24,18.0838]
[1720464820202,20.17,138.3,138.26,7.2326]
[1720464820510,20.17,138.3,138.27,7.2321]
[1720464821287,20.17,138.3,138.26,18.0816]
[1720464821499,20.0,138.3,138.28,7.2315]
[1720464822294,15.2788,138.31,138.28,18.079]
[1720464823019,15.2788,138.31,138.3,7.2306]
[1720464823711,15.2788,138.31,138.29,7.2309]
[1720464826637,15.2788,138.31,138.28,25.3104]
[1720464826930,15.2788,138.31,138.29,7.2311]
[1720464827626,6.5942,138.34,138.3,7.2306]
[1720464827817,20.0,138.33,138.3,7.2306]
[1720464828131,20.0,138.33,138.29,7.231]
[1720464829539,20.0,138.33,138.3,7.2305]
[1720464829722,20.0,138.33,138.29,18.0767]
[1720464829918,20.0,138.33,138.31,7.23]
[1720464830328,20.0,138.33,138.3,7.2305]
[1720464830508,20.0,138.33,138.29,25.3075]
[1720464831127,20.0,138.33,138.3,7.2306]
[1720464831535,20.0,138.33,138.31,7.23]
[1720464831734,27.2292,138.33,138.29,18.0767]
[1720464833222,20.0,138.33,138.29,25.3077]
[1720464834145,20.0,138.33,138.29,18.0767]
[1720464834638,20.0,138.33,138.3,7.2305]
[1720464835014,6.5942,138.34,138.32,7.2292]
[1720464835215,6.5942,138.34,138.31,18.0751]
[1720464835839,6.5942,138.34,138.31,25.3048]
[1720464838052,6.5942,138.34,138.32,7.2294]
[1720464840146,6.5942,138.34,138.33,25.3017]
[1720464840333,26.5942,138.34,138.33,25.3017]
[1720464840725,26.5942,138.34,138.27,36.1595]
[1720464840726,26.5942,138.34,138.31,7.23]
[1720464841134,6.5942,138.34,138.33,7.229]
[1720464841429,16.1318,138.35,138.33,7.229]
[1720464841838,6.3377,138.37,138.34,7.2284]
[1720464842032,6.3377,138.37,138.34,18.0711]
[1720464842337,6.3377,138.37,138.35,7.228]
[1720464842854,20.0,138.36,138.35,7.228]
[1720464843622,34.0678,138.39,138.35,7.228]
[1720464843824,36.1123,138.46,138.35,0.17]
[1720464843825,6.3377,138.44,138.35,0.17]
[1720464844042,6.3377,138.44,138.42,7.2243]
[1720464844250,6.3377,138.44,138.43,7.2238]
[1720464844425,15.7778,138.46,138.43,7.2238]
[1720464845047,7.2228,138.45,138.39,7.2258]
[1720464845359,18.29,138.45,138.38,18.0653]
[1720464845732,20.17,138.44,138.39,7.2255]
[1720464845941,20.17,138.44,138.4,7.2254]
[1720464846145,20.0,138.44,138.4,7.2254]
[1720464846347,20.0,138.44,138.41,7.2247]
[1720464846637,15.7778,138.46,138.42,18.06]
[1720464846839,15.7778,138.46,138.42,25.2842]
[1720464847042,23.0006,138.46,138.4,7.2252]
[1720464847239,7.223,138.45,138.4,7.2253]
[1720464847848,27.3934,138.44,138.39,25.2901]
[1720464848055,0.17,138.44,138.39,25.2901]
[1720464848232,6.3487,138.43,138.35,7.2278]
[1720464848435,7.2249,138.41,138.36,7.2273]
[1720464848638,16.4236,138.39,138.35,18.0697]
[1720464848839,23.6495,138.39,138.34,7.2282]
[1720464849039,23.6495,138.39,138.33,7.2289]
[1720464849338,20.0,138.38,138.35,7.228]
[1720464849541,20.0,138.38,138.34,7.2284]
[1720464849847,20.0,138.38,138.33,7.2287]
[1720464850222,20.0,138.38,138.34,7.2284]
[1720464850622,20.0,138.38,138.34,18.071]
[1720464851132,20.0,138.38,138.36,7.2273]
[1720464851722,20.0,138.38,138.37,7.227]
[1720464851928,0.17,138.4,138.38,7.2264]
[1720464852130,0.17,138.4,138.36,18.0683]
[1720464852131,0.17,138.4,138.37,7.2269]
[1720464852332,0.17,138.41,138.36,25.2956]
[1720464852951,0.17,138.41,138.37,7.2269]
[1720464853528,0.17,138.41,138.38,7.2263]
[1720464854047,20.0,138.42,138.36,0.17]
[1720464854355,20.0,138.42,138.4,18.0628]
[1720464854649,20.0,138.42,138.38,7.2263]
[1720464855351,20.0,138.42,138.37,25.2933]
[1720464855552,27.2244,138.42,138.37,25.2933]
[1720464855752,7.3949,138.41,138.34,18.0704]
[1720464855930,20.0,138.4,138.36,7.2274]
[1720464856133,20.0,138.4,138.37,7.2269]
[1720464856542,20.17,138.41,138.37,7.2269]
[1720464856760,20.0,138.4,138.37,7.2269]
[1720464856934,0.17,138.41,138.37,7.2269]
[1720464857136,0.17,138.41,138.36,25.2957]
[1720464857559,7.3952,138.41,138.36,18.0684]
[1720464857767,20.0,138.4,138.36,18.0684]
[1720464857939,20.0,138.4,138.36,25.2958]
[1720464858143,20.0,138.4,138.33,18.0723]
[1720464858338,18.29,138.35,138.26,18.0809]
[1720464858553,0.17,138.34,138.29,7.231]
[1720464858750,0.17,138.34,138.25,36.1641]
[1720464858751,6.0245,138.33,138.28,25.3101]
[1720464858953,7.2303,138.31,138.25,18.0825]
[1720464859155,0.17,138.3,138.25,25.3153]
[1720464859353,20.17,138.3,138.25,25.3153]
[1720464859550,27.4006,138.3,138.25,18.0825]
[1720464859949,20.17,138.3,138.25,18.0825]
[1720464860155,0.17,138.3,138.26,7.2327]
[1720464861665,20.0,138.31,138.29,7.231]
[1720464861846,20.17,138.32,138.28,25.3105]
[1720464862046,0.17,138.31,138.27,7.2321]
[1720464862248,20.17,138.32,138.28,7.2316]
[1720464863258,20.0,138.32,138.28,7.2316]
[1720464863564,20.0,138.32,138.27,25.3119]
[1720464863867,27.2299,138.32,138.27,7.2321]
[1720464864271,7.2301,138.31,138.26,7.2327]
[1720464864455,20.0,138.3,138.26,7.2327]
[1720464864765,20.0,138.3,138.27,7.2321]
[1720464864949,20.0,138.3,138.26,25.3138]
[1720464865149,7.2316,138.29,138.23,7.2339]
[1720464865668,20.0,138.28,138.24,7.2337]
[1720464865853,20.0,138.28,138.25,7.2332]
[1720464866258,0.17,138.29,138.26,7.2327]
[1720464866457,0.17,138.29,138.24,18.0841]
[1720464866648,0.17,138.29,138.25,7.2329]
[1720464867049,0.17,138.29,138.24,25.3178]
[1720464867269,7.2317,138.28,138.23,7.2342]
[1720464867467,0.17,138.27,138.23,7.2342]
[1720464868071,0.17,138.27,138.24,7.2336]
[1720464868980,20.0,138.28,138.23,18.0853]
[1720464868981,20.0,138.28,138.25,7.2331]
[1720464869155,27.4003,138.31,138.25,7.2331]
[1720464869472,0.17,138.3,138.25,7.2331]
[1720464869674,0.17,138.3,138.25,7.2332]
[1720464869878,7.57040357,138.32,138.29,7.2307]
[1720464870177,22.5933,138.33,138.29,18.0775]
[1720464870878,22.5933,138.33,138.26,18.0807]
[1720464871388,7.3997,138.32,138.27,7.232]
[1720464871676,20.0,138.31,138.27,7.2321]
[1720464871881,0.17,138.3,138.25,7.2332]
[1720464872182,7.231,138.3,138.25,7.2332]
[1720464872369,20.17,138.29,138.25,7.2332]
[1720464872753,20.17,138.29,138.25,25.3162]
[1720464872953,0.17,138.29,138.25,18.083]
[1720464873375,0.17,138.3,138.25,18.083]
[1720464873576,7.2312,138.29,138.25,18.083]
[1720464873755,20.17,138.28,138.24,7.2336]
[1720464874251,20.17,138.28,138.25,7.2331]
[1720464874452,0.17,138.28,138.24,18.084]
[1720464875081,0.17,138.28,138.26,7.2326]
[1720464875263,0.17,138.29,138.26,25.3145]
[1720464876261,31.67280433,138.32,138.27,7.2321]
[1720464876460,0.17,138.31,138.28,7.2316]
[1720464876882,0.17,138.31,138.27,7.232]
[1720464877086,20.0,138.32,138.27,7.232]
[1720464878094,22.5933,138.33,138.3,7.2306]
[1720464878395,22.5933,138.33,138.29,7.231]
[1720464879387,20.0,138.32,138.28,25.3095]
[1720464879891,20.0,138.32,138.29,7.231]
[1720464880968,20.0,138.32,138.28,18.0782]